bitfinex/quotes_SOLUSD_20240708
["timestamp","ask_amount","ask_price","bid_price","bid_amount"]
[1720460783013,27.4581,137.21,137.15,7.2909]
[1720460783235,27.4581,137.21,137.14,25.5202]
[1720460783456,20.17,137.21,137.11,18.2324]
[1720460783746,20.17,137.2,137.12,7.2927]
[1720460783907,0.17,137.19,137.12,7.2927]
[1720460784112,0.17,137.2,137.12,7.2927]
[1720460784307,7.29,137.18,137.11,25.5256]
[1720460784611,20.17,137.17,137.11,25.5256]
[1720460784830,7.2911,137.16,137.1,7.2938]
[1720460785029,7.2911,137.16,137.08,39.7337]
[1720460785331,0.17,137.15,137.08,39.7337]
[1720460785632,0.17,137.15,137.08,18.2368]
[1720460786432,7.4613,137.15,137.09,7.2942]
[1720460786928,7.61160702,137.14,137.09,7.2942]
[1720460787722,7.61160702,137.14,137.13,25.5231]
[1720460788042,42.6923,137.17,137.11,7.2929]
[1720460788212,50.31001603,137.17,137.11,7.2929]
[1720460788734,57.60021603,137.17,137.11,7.2929]
[1720460789115,50.31001603,137.17,137.09,7.2943]
[1720460789425,0.17,137.16,137.1,7.2938]
[1720460789813,35.56016745,137.17,137.11,18.2332]
[1720460790027,27.94245142,137.17,137.13,18.2304]
[1720460790214,5.25015142,137.17,137.13,121.93]
[1720460790421,7.61703513,137.2,137.15,25.5182]
[1720460790623,21.3109,137.21,137.15,25.5182]
[1720460791140,21.3109,137.21,137.16,7.2906]
[1720460791325,21.3109,137.21,137.16,7.2902]
[1720460791642,20.0,137.2,137.16,7.2902]
[1720460792032,20.0,137.2,137.15,25.5182]
[1720460792435,20.0,137.2,137.12,18.231]
[1720460793241,0.17,137.19,137.13,7.2921]
[1720460793440,0.17,137.2,137.12,25.5235]
[1720460793745,7.2893,137.19,137.12,25.5235]
[1720460793951,20.0,137.18,137.12,25.5235]
[1720460794160,20.0,137.18,137.12,18.231]
[1720460794361,20.0,137.18,137.14,7.2917]
[1720460794653,20.0,137.19,137.14,7.2917]
[1720460794862,20.17,137.2,137.14,25.5211]
[1720460795036,20.17,137.2,137.13,7.2922]
[1720460795228,7.2902,137.17,137.11,18.2324]
[1720460795432,20.17,137.2,137.12,7.2927]
[1720460795433,7.2896,137.19,137.12,7.2927]
[1720460795656,27.2898,137.18,137.11,25.5257]
[1720460795862,20.0,137.18,137.12,7.2928]
[1720460796226,20.0,137.18,137.12,7.2927]
[1720460796848,27.2899,137.18,137.11,25.5256]
[1720460797058,7.4602,137.17,137.11,25.5256]
[1720460797365,20.0,137.18,137.12,7.2927]
[1720460798563,26.50285162,137.21,137.14,0.17]
[1720460798742,26.50285162,137.21,137.14,122.1]
[1720460798938,7.61632196,137.23,137.19,7.2891]
[1720460799144,7.61632196,137.23,137.19,18.2225]
[1720460799465,7.61632196,137.23,137.19,25.5115]
[1720460799963,7.61632196,137.23,137.2,7.2886]
[1720460800139,7.61632196,137.23,137.19,25.5114]
[1720460800341,7.61632196,137.23,137.19,18.2225]
[1720460800540,7.61632196,137.23,137.18,7.2895]
[1720460800843,7.61632196,137.23,137.18,40.1539]
[1720460801658,7.61632196,137.23,137.2,7.2882]
[1720460802061,27.86120144,137.25,137.2,7.2882]
[1720460802362,20.0,137.24,137.19,7.2889]
[1720460802743,20.0,137.24,137.17,0.17]
[1720460802950,27.2866,137.24,137.17,7.2901]
[1720460803154,27.2866,137.24,137.17,25.5155]
[1720460804655,20.0,137.24,137.17,18.2254]
[1720460804963,27.2866,137.24,137.18,7.2895]
[1720460805151,27.2866,137.24,137.17,25.5154]
[1720460805357,20.0,137.24,137.19,18.2226]
[1720460806041,27.2865,137.24,137.18,7.2894]
[1720460806868,27.2865,137.24,137.17,7.2901]
[1720460807163,20.0,137.24,137.19,7.289]
[1720460807342,20.0,137.24,137.2,7.2885]
[1720460807538,20.0,137.24,137.21,7.2876]
[1720460807965,20.0,137.24,137.2,18.2212]
[1720460808748,20.0,137.24,137.2,25.5095]
[1720460809265,27.86120144,137.25,137.2,25.5095]
[1720460809445,21.49160144,137.25,137.2,40.1512]
[1720460809650,21.49160144,137.25,137.22,7.2871]
[1720460809849,21.49160144,137.25,137.21,7.288]
[1720460810957,21.49160144,137.25,137.22,7.2874]
[1720460811166,7.61391689,137.27,137.23,7.2869]
[1720460811371,5.32653781,137.27,137.22,25.5057]
[1720460811553,38.20523344,137.29,137.22,18.2184]
[1720460811554,7.2847,137.28,137.22,18.2184]
[1720460811751,20.0,137.27,137.22,25.5058]
[1720460812145,20.0,137.27,137.21,7.2879]
[1720460812353,27.2849,137.27,137.21,7.2879]
[1720460812554,7.2856,137.26,137.2,7.2884]
[1720460812871,7.2867,137.24,137.17,7.2898]
[1720460813868,7.2893,137.19,137.13,7.2918]
[1720460814245,7.2893,137.19,137.13,7.2922]
[1720460814458,7.4587,137.2,137.14,7.2916]
[1720460814655,20.0,137.19,137.14,7.2916]
[1720460815354,20.0,137.2,137.14,7.2916]
[1720460816746,20.0,137.2,137.15,0.17]
[1720460816977,0.17,137.21,137.14,18.2291]
[1720460817178,7.2886,137.2,137.14,25.5205]
[1720460817351,7.2882,137.21,137.14,25.5205]
[1720460817546,20.0,137.2,137.14,25.5205]
[1720460817880,20.0,137.2,137.16,7.2902]
[1720460818050,20.0,137.22,137.16,7.2902]
[1720460818252,20.0,137.22,137.15,7.2911]
[1720460818764,27.2876,137.22,137.16,7.2906]
[1720460819071,26.75180246,137.23,137.18,7.2891]
[1720460819270,26.75180246,137.23,137.17,7.29]
[1720460819575,34.03890246,137.23,137.16,25.517]
[1720460819747,34.03890246,137.23,137.16,18.2264]
[1720460819748,7.2876,137.22,137.16,18.2264]
[1720460820373,7.2881,137.21,137.14,7.4616]
[1720460820572,26.92180246,137.23,137.13,18.2297]
[1720460820778,7.2884,137.21,137.14,7.2917]
[1720460821079,20.17,137.22,137.15,7.2912]
[1720460821080,27.4576,137.22,137.15,7.2912]
[1720460821279,27.4576,137.22,137.16,7.2906]
[1720460821479,20.17,137.22,137.17,7.2902]
[1720460821863,7.2887,137.2,137.13,21.93]
[1720460822070,20.17,137.22,137.14,7.4618]
[1720460822692,7.2895,137.19,137.12,25.5233]
[1720460823075,7.2895,137.19,137.13,7.2921]
[1720460823382,7.4588,137.2,137.13,7.2921]
[1720460823559,20.0,137.19,137.12,18.2309]
[1720460823762,7.2902,137.18,137.12,18.2309]
[1720460824170,20.0,137.19,137.12,18.2309]
[1720460824369,7.4591,137.2,137.13,7.2919]
[1720460824584,20.0,137.19,137.13,7.2919]
[1720460824789,20.0,137.19,137.12,25.5237]
[1720460824978,7.2899,137.18,137.12,18.2309]
[1720460825896,16.2538,137.16,137.09,18.235]
[1720460826192,22.6304,137.16,137.09,18.235]
[1720460826388,20.0,137.15,137.09,47.4591]
[1720460826590,20.0,137.15,137.09,40.165]
[1720460826774,27.2913,137.15,137.09,25.5293]
[1720460827302,20.0,137.15,137.09,25.5293]
[1720460827488,20.0,137.15,137.1,7.2939]
[1720460828373,20.0,137.15,137.11,7.2932]
[1720460828869,25.2173789,137.15,137.11,18.2331]
[1720460829072,7.86804503,137.18,137.14,7.2914]
[1720460829298,15.9864,137.2,137.14,7.2914]
[1720460829299,15.9864,137.2,137.14,222.1]
[1720460829601,15.9864,137.2,137.16,7.2905]
[1720460829771,15.9864,137.2,137.14,18.3982]
[1720460829975,23.2751,137.2,137.14,25.5196]
[1720460830198,7.2892,137.19,137.13,7.2922]
[1720460830377,7.2895,137.19,137.12,7.4627]
[1720460831184,7.2895,137.19,137.11,18.2322]
[1720460831185,20.0,137.18,137.11,18.2322]
[1720460831380,20.0,137.18,137.13,7.292]
[1720460831989,20.0,137.18,137.11,18.2322]
[1720460832310,20.0,137.18,137.08,222.9581]
[1720460832484,7.4603,137.17,137.09,0.17]
[1720460832684,7.2908,137.16,137.1,25.5286]
[1720460833192,7.2929,137.12,137.06,107.2956]
[1720460833396,7.2924,137.13,137.06,125.5356]
[1720460833707,20.0,137.12,137.07,7.2952]
[1720460833911,16.3056,137.15,137.08,140.1668]
[1720460834207,16.3056,137.15,137.11,7.293]
[1720460834385,16.3056,137.15,137.13,7.2921]
[1720460834583,16.3056,137.15,137.1,121.93]
[1720460834584,6.3294,137.16,137.12,7.2926]
[1720460834904,6.3294,137.16,137.12,25.5241]
[1720460834905,5.37620937,137.16,137.12,25.5241]
[1720460835081,7.60631046,137.19,137.15,7.2909]
[1720460835283,7.60631046,137.19,137.14,40.3293]
[1720460835512,6.3294,137.2,137.17,7.2901]
[1720460835810,6.3294,137.2,137.14,7.2916]
[1720460837790,13.6181,137.2,137.14,7.2916]
[1720460838017,13.6181,137.2,137.14,0.17]
[1720460838313,7.2892,137.19,137.13,25.5218]
[1720460838606,7.2892,137.19,137.09,136.4709]
[1720460838607,27.29,137.18,137.1,18.2336]
[1720460838910,7.2908,137.16,137.1,18.2336]
[1720460839212,23.5964,137.16,137.1,25.5273]
[1720460839389,16.3056,137.16,137.11,7.2934]
[1720460840006,16.3056,137.16,137.12,7.2928]
[1720460840402,16.3056,137.16,137.12,18.2321]
[1720460840592,20.0,137.18,137.12,18.2321]
[1720460840791,20.0,137.19,137.13,7.2921]
[1720460841306,27.2892,137.19,137.13,7.2921]
[1720460841793,22.7722,137.2,137.14,7.2917]
[1720460841991,22.7722,137.2,137.14,25.5212]
[1720460842181,7.2892,137.19,137.13,7.2921]
[1720460842388,7.2892,137.19,137.12,29.3926]
[1720460842739,7.29,137.18,137.12,7.2926]
[1720460842911,7.29,137.18,137.11,25.5257]
[1720460843413,7.29,137.18,137.12,7.2928]
[1720460843582,7.2897,137.18,137.12,7.2928]
[1720460843785,7.2897,137.18,137.11,25.5256]
[1720460843987,20.0,137.17,137.11,25.5256]
[1720460844710,20.0,137.17,137.12,7.2928]
[1720460844908,27.2904,137.17,137.11,18.2325]
[1720460846109,27.61520205,137.17,137.12,7.2928]
[1720460846315,27.61520205,137.17,137.13,18.2307]
[1720460846525,22.7722,137.2,137.15,7.2911]
[1720460846698,22.7722,137.2,137.16,7.2906]
[1720460847027,22.7722,137.2,137.15,18.2276]
[1720460847194,16.5406,137.23,137.19,7.2887]
[1720460847517,58.3346,137.35,137.19,7.2887]
[1720460847518,7.61300176,137.25,137.24,7.2865]
[1720460847691,7.61300176,137.25,137.24,129.3865]
[1720460847897,5.48148321,137.31,137.25,7.2859]
[1720460848091,7.2829,137.31,137.24,47.6023]
[1720460849118,20.0,137.3,137.2,100.0]
[1720460849323,7.2842,137.29,137.22,7.2872]
[1720460849499,7.2833,137.3,137.21,100.17]
[1720460849694,0.17,137.31,137.22,18.2181]
[1720460849911,7.2836,137.3,137.23,7.2868]
[1720460850118,7.454,137.29,137.23,7.2869]
[1720460850319,7.284,137.29,137.23,7.2869]
[1720460850495,7.2834,137.3,137.23,7.2869]
[1720460850911,7.2828,137.31,137.24,7.2864]
[1720460851103,28.19746047,137.32,137.25,7.2858]
[1720460851104,35.47986047,137.32,137.25,7.2858]
[1720460851625,27.2828,137.31,137.24,18.2159]
[1720460851796,27.2828,137.31,137.24,25.5022]
[1720460852209,27.2828,137.31,137.24,0.17]
[1720460852210,7.2834,137.3,137.24,0.17]
[1720460852401,20.0,137.29,137.24,0.17]
[1720460852603,20.0,137.29,137.23,7.4566]
[1720460852899,27.2839,137.29,137.22,7.2874]
[1720460853524,20.0,137.29,137.23,7.2868]
[1720460853722,7.285,137.27,137.21,25.5071]
[1720460853897,20.0,137.29,137.22,7.2874]
[1720460853898,20.0,137.26,137.22,7.2874]
[1720460854224,7.2845,137.28,137.21,25.5072]
[1720460854402,27.285,137.27,137.21,18.2192]
[1720460854595,7.285,137.27,137.21,18.2192]
[1720460854804,20.0,137.26,137.21,18.2192]
[1720460856024,20.0,137.26,137.2,7.2883]
[1720460856223,7.2852,137.27,137.2,7.2883]
[1720460856410,20.0,137.26,137.21,7.2879]
[1720460856923,20.0,137.26,137.21,129.2179]
[1720460857127,20.0,137.27,137.22,7.2875]
[1720460857331,7.2831,137.31,137.24,7.286]
[1720460857629,7.2842,137.29,137.22,7.2873]
[1720460858626,7.2842,137.29,137.23,7.287]
[1720460858922,7.285,137.27,137.21,25.5069]
[1720460859219,15.5823,137.24,137.18,7.2893]
[1720460859410,22.8688,137.24,137.18,7.2893]
[1720460859607,20.0,137.23,137.17,25.5155]
[1720460860002,20.0,137.23,137.17,18.2255]
[1720460860331,27.2873,137.23,137.16,7.2905]
[1720460860704,20.0,137.23,137.19,21.93]
[1720460860919,16.3794,137.28,137.2,7.2882]
[1720460860920,20.0,137.25,137.2,7.2882]
[1720460861237,16.3794,137.28,137.22,107.2871]
[1720460861403,16.3794,137.28,137.22,100.0]
[1720460861725,28.9773749,137.28,137.22,18.2188]
[1720460862230,28.9773749,137.28,137.22,25.5063]
[1720460862434,7.2844,137.28,137.22,125.5063]
[1720460863528,12.73702894,137.29,137.23,0.17]
[1720460863735,20.0,137.28,137.23,0.17]
[1720460864434,20.0,137.28,137.23,7.4568]
[1720460864734,20.0,137.29,137.23,0.17]
[1720460865132,20.0,137.3,137.23,0.17]
[1720460865632,7.2847,137.28,137.23,0.17]
[1720460866043,20.0,137.27,137.21,0.17]
[1720460866333,38.2083,137.3,137.21,0.17]
[1720460866637,0.17,137.29,137.21,0.17]
[1720460866934,7.2861,137.25,137.19,6.0894]
[1720460867109,18.2112,137.28,137.2,21.93]
[1720460867419,7.2858,137.26,137.19,7.289]
[1720460867615,27.2861,137.25,137.19,7.289]
[1720460867819,20.0,137.24,137.19,7.289]
[1720460868131,20.0,137.24,137.22,100.0]
[1720460868331,20.0,137.24,137.22,125.5055]
[1720460868538,18.2114,137.28,137.2,100.0]
[1720460868718,7.2859,137.25,137.19,7.2891]
[1720460868923,20.0,137.24,137.2,0.17]
[1720460869349,20.0,137.24,137.2,7.4585]
[1720460869525,20.0,137.25,137.2,7.4585]
[1720460869723,20.0,137.25,137.2,107.4585]
[1720460870248,7.2841,137.29,137.24,0.17]
[1720460870446,16.0085,137.31,137.22,0.17]
[1720460870731,7.2852,137.27,137.22,0.17]
[1720460871228,7.2854,137.26,137.22,0.17]
[1720460871438,20.0,137.25,137.22,0.17]
[1720460871941,20.0,137.26,137.22,0.17]
[1720460872619,27.2855,137.26,137.2,7.4584]
[1720460874250,20.0,137.26,137.21,7.288]
[1720460874440,20.0,137.27,137.22,7.457]
[1720460874739,20.0,137.28,137.22,7.457]
[1720460874943,7.2853,137.27,137.21,18.22]
[1720460875116,20.0,137.26,137.21,18.22]
[1720460876013,20.0,137.26,137.21,25.5079]
[1720460876528,27.2855,137.26,137.2,29.2184]
[1720460876729,7.2861,137.25,137.19,7.4589]
[1720460876948,20.0,137.24,137.19,0.17]
[1720460877123,20.0,137.24,137.2,7.2886]
[1720460877556,20.0,137.24,137.19,7.4589]
[1720460877757,5.33210863,137.24,137.19,7.4589]
[1720460878052,20.0,137.23,137.19,7.4589]
[1720460878226,20.0,137.25,137.19,7.4589]
[1720460878227,25.47347804,137.25,137.19,7.4589]
[1720460878426,7.2878,137.22,137.15,25.5183]
[1720460878966,7.2888,137.2,137.13,7.2919]
[1720460879126,27.2891,137.19,137.12,25.5234]
[1720460879325,7.2898,137.18,137.12,25.5234]
[1720460879521,20.0,137.17,137.12,25.5234]
[1720460881029,20.0,137.17,137.13,7.2922]
[1720460881964,20.0,137.17,137.12,25.5238]
[1720460882327,27.2902,137.17,137.12,18.2311]
[1720460882527,7.2908,137.16,137.09,118.2354]
[1720460882735,20.0,137.15,137.09,25.5295]
[1720460883551,20.0,137.15,137.09,140.1654]
[1720460883757,27.2902,137.17,137.11,25.5263]
[1720460884065,27.2902,137.17,137.11,18.2333]
[1720460885269,20.0,137.17,137.09,7.2943]
[1720460886129,20.0,137.17,137.04,122.7366]
[1720460886130,20.0,137.17,137.11,107.2933]
[1720460886862,7.61337552,137.2,137.15,0.17]
[1720460887073,5.31032069,137.2,137.15,7.4609]
[1720460887243,23.2995,137.21,137.15,0.17]
[1720460887565,23.63011057,137.21,137.15,0.17]
[1720460888069,7.2892,137.19,137.13,0.17]
[1720460888360,20.0,137.18,137.11,18.2329]
[1720460888547,7.2905,137.17,137.11,18.2329]
[1720460888742,27.2907,137.16,137.1,7.2937]
[1720460889062,7.2914,137.15,137.08,25.5314]
[1720460889258,20.0,137.14,137.08,25.5314]
[1720460889457,16.0111,137.13,137.08,18.2366]
[1720460889633,20.0,137.12,137.08,18.2366]
[1720460889971,20.0,137.12,137.06,7.2959]
[1720460890556,20.0,137.12,137.07,7.2953]
[1720460890949,20.0,137.12,137.06,29.2258]
[1720460892267,27.2929,137.12,137.06,29.2258]
[1720460892664,20.0,137.12,137.06,29.2258]
[1720460892867,20.0,137.12,137.07,7.2953]
[1720460893179,20.0,137.12,137.07,25.534]
[1720460893746,20.0,137.12,137.07,18.2387]
[1720460893747,27.2928,137.12,137.07,18.2387]
[1720460893970,27.2928,137.12,137.06,29.3958]
[1720460894136,20.0,137.12,137.01,121.93]
[1720460894339,7.2957,137.07,137.0,7.2992]
[1720460894540,7.2964,137.06,136.99,25.5488]
[1720460894736,27.2966,137.05,136.99,25.5488]
[1720460895352,27.2966,137.05,136.99,25.5486]
[1720460895353,20.0,137.05,136.99,25.5486]
[1720460895767,27.2967,137.05,136.99,25.5486]
[1720460896544,20.0,137.05,137.0,107.2992]
[1720460896861,20.0,137.06,137.0,7.2992]
[1720460897068,7.2962,137.06,137.0,0.17]
[1720460897247,20.0,137.05,137.0,0.17]
[1720460897448,20.0,137.05,136.99,25.5487]
[1720460897648,20.0,137.05,136.99,47.4787]
[1720460897859,20.0,137.05,137.0,7.2991]
[1720460898049,20.0,137.06,137.0,7.2991]
[1720460898459,20.0,137.06,136.99,40.1792]
[1720460898664,7.297,137.05,136.99,18.2492]
[1720460898862,20.0,137.04,136.99,18.2492]
[1720460899243,16.2638,137.03,136.96,118.2524]
[1720460899447,27.2982,137.02,136.96,125.5536]
[1720460899674,20.0,137.02,136.96,125.5536]
[1720460899970,20.0,137.02,136.97,7.3007]
[1720460900869,20.0,137.02,136.98,7.3002]
[1720460901168,20.0,137.02,136.97,7.3006]
[1720460901375,20.0,137.02,136.96,47.4835]
[1720460901667,20.0,137.02,136.97,7.4705]
[1720460901970,20.0,137.02,136.98,7.3002]
[1720460902149,20.0,137.02,136.99,7.4697]
[1720460902658,6.0577,137.05,136.99,40.3491]
[1720460902861,6.0577,137.05,136.99,47.6485]
[1720460903247,13.3543,137.05,136.99,25.7185]
[1720460903443,13.3545,137.05,136.98,129.2302]
[1720460903658,6.0577,137.05,136.98,121.93]
[1720460903863,6.0577,137.05,136.94,218.2556]
[1720460904067,7.2978,137.03,136.96,125.5544]
[1720460904264,20.0,137.02,136.94,100.0]
[1720460904574,20.0,137.02,136.96,7.3013]
[1720460904575,27.2983,137.02,136.96,7.3013]
[1720460905165,20.0,137.02,136.96,25.5546]
[1720460905371,20.0,137.02,136.97,7.3007]
[1720460905869,20.0,137.02,136.96,25.5544]
[1720460906054,20.0,137.02,136.93,40.1866]
[1720460906261,7.2992,137.0,136.93,25.5594]
[1720460906489,20.0,136.99,136.93,25.5594]
[1720460907168,20.0,136.99,136.94,107.3023]
[1720460907348,20.0,137.0,136.95,7.3018]
[1720460907555,20.0,137.01,136.95,7.3018]
[1720460907749,20.0,137.01,136.96,7.4712]
[1720460907973,7.62322879,137.04,136.99,0.17]
[1720460908249,6.0577,137.05,137.0,7.299]
[1720460908654,6.0577,137.05,136.94,21.93]
[1720460908879,7.2988,137.01,136.94,29.2319]
[1720460909178,7.2983,137.02,136.95,129.2317]
[1720460909556,7.2987,137.01,136.94,7.3023]
[1720460909878,27.2993,137.0,136.94,7.3023]
[1720460910378,20.0,137.0,136.95,118.2544]
[1720460910585,7.2983,137.02,136.95,125.5561]
[1720460910762,20.0,137.01,136.95,147.4861]
[1720460911655,20.0,137.01,136.96,0.17]
[1720460912472,20.0,137.01,136.95,147.4861]
[1720460912473,27.2989,137.01,136.95,118.2544]
[1720460913265,27.2989,137.01,136.95,18.2544]
[1720460914378,20.0,137.01,136.96,0.17]
[1720460914595,6.0577,137.05,136.98,18.4197]
[1720460914756,6.0577,137.05,136.98,0.17]
[1720460915082,13.3544,137.05,136.99,7.2997]
[1720460915295,13.3544,137.05,136.98,7.4701]
[1720460915578,7.2977,137.03,136.98,0.17]
[1720460915778,7.2974,137.04,136.98,0.17]
[1720460915962,7.2977,137.03,136.97,7.3004]
[1720460916577,0.17,137.01,136.89,100.0]
[1720460916792,30.34827588,137.0,136.89,100.0]
[1720460917080,7.3026,136.94,136.87,21.93]
[1720460917281,20.0,136.93,136.87,29.2358]
[1720460918167,27.303,136.93,136.87,21.93]
[1720460918369,20.0,136.93,136.86,140.1966]
[1720460918684,7.3031,136.93,136.87,7.3061]
[1720460918870,20.0,136.92,136.87,7.3061]
[1720460919380,20.0,136.92,136.87,7.3057]
[1720460919585,20.0,136.93,136.87,7.3057]
[1720460919966,27.3031,136.93,136.86,25.5731]
[1720460920169,7.304,136.91,136.85,7.3072]
[1720460920363,7.3037,136.92,136.85,7.3072]
[1720460920563,20.0,136.91,136.86,7.3066]
[1720460920765,20.0,136.91,136.86,107.3066]
[1720460921190,20.0,136.92,136.86,29.2366]
[1720460921692,20.0,136.92,136.87,7.4761]
[1720460921998,35.2792,136.92,136.84,0.04330186]
[1720460922375,7.3055,136.89,136.84,0.04330186]
[1720460922576,20.0,136.88,136.84,0.04330186]
[1720460923395,26.1746,136.88,136.84,0.04330186]
[1720460923698,7.3065,136.87,136.84,0.04330186]
[1720460924001,27.307,136.86,136.84,0.04330186]
[1720460924170,20.0,136.85,136.79,7.3103]
[1720460924366,27.3077,136.85,136.78,40.2067]
[1720460924592,20.0,136.85,136.8,129.2395]
[1720460924901,22.7433,136.9,136.83,7.3079]
[1720460925087,20.0,136.89,136.84,0.6781503]
[1720460925392,27.3052,136.89,136.84,0.6781503]
[1720460925899,27.3052,136.89,136.84,140.8772503]
[1720460925900,20.0,136.89,136.84,140.8772503]
[1720460926186,20.0,136.89,136.84,118.2691]
[1720460926381,20.0,136.89,136.78,36.5533]
[1720460926382,7.3063,136.87,136.8,7.3098]
[1720460926780,20.0,136.86,136.8,7.3098]
[1720460927088,20.0,136.86,136.8,18.2742]
[1720460927291,27.3066,136.87,136.8,18.2742]
[1720460927983,27.3066,136.87,136.77,240.274]
[1720460927984,7.3073,136.85,136.77,240.274]
[1720460928187,20.0,136.84,136.78,29.2405]
[1720460928395,27.3078,136.84,136.78,21.93]
[1720460928563,15.0677,136.83,136.78,21.93]
[1720460928769,20.0,136.82,136.78,7.3109]
[1720460929183,20.0,136.82,136.77,25.5895]
[1720460929593,20.0,136.82,136.78,7.3109]
[1720460929872,20.0,136.82,136.77,25.5895]
[1720460930072,20.0,136.82,136.78,7.3109]
[1720460930483,20.0,136.82,136.77,47.5194]
[1720460930792,20.0,136.82,136.78,107.3105]
[1720460930994,23.70350817,136.86,136.8,121.93]
[1720460931195,16.0806,136.86,136.8,7.3097]
[1720460931592,16.0806,136.86,136.8,107.3097]
[1720460931898,16.0806,136.86,136.79,25.7558]
[1720460932300,20.0,136.85,136.79,25.7558]
[1720460932597,20.0,136.85,136.8,7.3099]
[1720460932977,20.0,136.85,136.8,107.3099]
[1720460933175,20.0,136.85,136.79,25.7559]
[1720460933594,20.0,136.85,136.76,100.0]
[1720460933798,27.3075,136.85,136.78,7.3109]
[1720460933994,20.0,136.85,136.79,7.3103]
[1720460934172,20.0,136.85,136.8,7.3098]
[1720460934376,20.0,136.85,136.79,25.5863]
[1720460934591,20.0,136.85,136.83,7.3082]
[1720460934799,20.0,136.87,136.81,25.582]
[1720460934985,20.0,136.87,136.82,7.3087]
[1720460935183,20.0,136.87,136.81,25.5821]
[1720460935391,20.0,136.87,136.82,7.3088]
[1720460935878,20.0,136.87,136.83,7.3081]
[1720460936072,20.0,136.87,136.82,7.3085]
[1720460936609,27.3062,136.87,136.81,7.3093]
[1720460936778,20.0,136.87,136.82,7.4786]
[1720460937481,20.0,136.87,136.83,7.3082]
[1720460937879,20.0,136.87,136.81,25.5823]
[1720460938082,8.83835645,136.88,136.8,100.0]
[1720460938408,16.1497,136.93,136.87,7.3062]
[1720460938607,16.1497,136.93,136.86,18.2662]
[1720460938803,7.3036,136.92,136.85,7.3069]
[1720460938975,34.55692164,136.93,136.86,7.3067]
[1720460939175,27.25382164,136.93,136.85,18.2679]
[1720460939401,27.25382164,136.93,136.86,7.3066]
[1720460939402,34.55692164,136.93,136.86,7.3066]
[1720460939615,27.25382164,136.93,136.85,240.1979]
[1720460939803,20.0,136.92,136.88,7.3056]
[1720460940181,20.0,136.92,136.87,18.2651]
[1720460940389,20.0,136.92,136.89,7.3047]
[1720460941007,20.0,136.92,136.9,7.3045]
[1720460941307,18.97216667,136.96,136.91,7.3039]
[1720460941603,11.10412164,136.96,136.91,7.3039]
[1720460941813,11.10412164,136.96,136.89,132.0792]
[1720460942015,18.40552164,136.96,136.89,25.5668]
[1720460942307,11.10412164,136.96,136.89,18.2622]
[1720460942612,11.10412164,136.96,136.9,7.3044]
[1720460942977,11.10412164,136.96,136.89,18.2622]
[1720460943184,7.303,136.93,136.86,25.5727]
[1720460943381,27.3035,136.92,136.86,18.2662]
[1720460943582,20.0,136.92,136.86,18.2662]
[1720460943791,20.17,136.95,136.86,18.2662]
[1720460944003,0.17,136.94,136.83,18.2699]
[1720460944214,29.04017674,136.95,136.84,21.93]